bitfinex/quotes_ETHUSD_20251017
["timestamp","ask_amount","ask_price","bid_price","bid_amount"]
[1760702428390,0.002,3785.3,3784.2,0.1303]
[1760702428591,0.002,3785.3,3784.3,2.64243034]
[1760702428791,0.41643218,3785.3,3784.9,2.64201926]
[1760702429004,0.41643218,3785.3,3784.2,0.1303]
[1760702429208,0.41643218,3785.3,3784.7,2.64220358]
[1760702429433,0.41643218,3785.3,3784.2,0.1303]
[1760702429729,0.4307,3785.2,3784.1,2.64260933]
[1760702429931,1.728,3785.0,3784.1,2.64258569]
[1760702430140,1.728,3785.0,3783.4,0.001]
[1760702430141,0.2138,3784.2,3783.8,2.64282989]
[1760702430490,0.6445,3784.2,3783.8,2.64282989]
[1760702430735,0.6445,3784.2,3783.4,0.001]
[1760702430736,0.4307,3784.1,3783.4,0.001]
[1760702431603,1.728,3783.8,3783.4,0.001]
[1760702431816,2.64277597,3783.9,3783.4,0.001]
[1760702432017,3.0736662,3783.7,3783.4,0.001]
[1760702432326,0.4307,3783.7,3783.4,0.001]
[1760702432511,0.4307,3783.7,3783.0,0.001]
[1760702432512,24.06378183,3783.1,3783.0,0.001]
[1760702432843,2.64361434,3782.7,3782.6,0.001]
[1760702432994,4.96368785,3782.7,3782.6,0.001]
[1760702433190,5.39438785,3782.7,3782.6,0.001]
[1760702433428,6.06437351,3782.7,3782.6,0.001]
[1760702433731,2.75077351,3782.7,3782.6,0.001]
[1760702434026,2.1587,3782.7,3782.6,0.001]
[1760702434228,2.20478341,3782.7,3782.6,0.001]
[1760702434399,2.61953431,3782.7,3782.6,0.001]
[1760702434929,2.18883431,3782.7,3782.6,0.001]
[1760702435127,0.46083431,3782.7,3782.6,2.64468423]
[1760702435337,0.4147509,3782.7,3782.6,3.17373087]
[1760702435628,0.4147509,3782.7,3782.6,2.64468423]
[1760702435834,0.4147509,3782.7,3782.6,0.001]
[1760702436236,0.4147509,3782.7,3782.6,2.64468423]
[1760702436434,0.0460766,3783.3,3782.9,2.643406]
[1760702436613,0.0460766,3783.3,3782.7,2.64360775]
[1760702436614,0.0460766,3783.3,3782.8,2.66996419]
[1760702436805,0.0460766,3783.3,3782.8,2.64353919]
[1760702437012,0.4307,3783.2,3782.6,0.001]
[1760702437209,0.4307,3783.2,3782.6,2.64467375]
[1760702437609,0.4307,3783.2,3783.0,2.64339248]
[1760702437917,0.0460766,3783.3,3783.2,2.64326496]
[1760702438104,0.41465637,3783.5,3782.9,2.64341529]
[1760702438306,0.41465637,3783.5,3783.0,2.64339386]
[1760702438538,0.4307,3783.4,3782.9,2.64345291]
[1760702438707,0.41465637,3783.5,3782.6,0.001]
[1760702439205,13.72617571,3785.3,3782.6,0.001]
[1760702439206,0.6445,3785.1,3783.2,2.64324413]
[1760702439411,0.04606153,3784.7,3783.4,0.132]
[1760702439607,0.04606153,3784.7,3782.7,0.26466965]
[1760702439608,0.04606153,3784.7,3783.5,0.1323]
[1760702439818,0.04606153,3784.7,3784.5,2.64235158]
[1760702440019,0.04606153,3784.7,3784.4,2.64241047]
[1760702440242,0.04606153,3784.7,3784.2,2.64254645]
[1760702440428,0.04606153,3784.7,3783.6,0.132]
[1760702440429,0.4307,3784.6,3783.6,0.132]
[1760702440631,0.04806153,3784.7,3784.5,2.64230058]
[1760702441034,0.04806153,3784.7,3784.2,2.6425546]
[1760702441230,0.04806153,3784.7,3784.6,2.64228716]
[1760702441442,0.04806153,3784.7,3783.8,0.1323]
[1760702441643,0.04806153,3784.7,3784.5,2.64235308]
[1760702442342,0.04806153,3784.7,3784.6,2.64228716]
[1760702442542,0.002,3784.7,3784.5,2.64233838]
[1760702442761,0.002,3784.7,3784.5,2.64235439]
[1760702442924,0.002,3784.7,3783.8,0.1323]
[1760702442925,0.002,3784.7,3784.6,2.64228716]
[1760702443336,0.002,3784.7,3784.6,3.00751269]
[1760702444482,0.002,3784.7,3784.6,3.03393556]
[1760702444622,0.002,3784.7,3784.6,3.13981269]
[1760702444951,0.6336,3786.4,3785.4,2.64172874]
[1760702445134,2.5222,3786.3,3785.4,2.64172874]
[1760702445340,0.57968766,3786.2,3785.5,2.64165871]
[1760702445538,0.57968766,3786.2,3785.2,0.2327]
[1760702445738,0.57968766,3786.2,3784.6,0.36522553]
[1760702446058,1.728,3786.1,3785.3,2.64178465]
[1760702446364,1.728,3786.1,3785.2,2.64183407]
[1760702446658,4.36929251,3786.1,3785.1,2.64188279]
[1760702446858,3.43530736,3786.3,3784.5,0.6776]
[1760702446859,1.728,3785.9,3784.5,0.6776]
[1760702447021,0.4308,3785.8,3785.0,2.64197921]
[1760702447222,0.4308,3785.8,3784.6,2.64227902]
[1760702447432,1.9876,3785.7,3784.2,0.6776]
[1760702447733,2.64168793,3785.5,3784.5,2.64229232]
[1760702447936,0.2596,3785.7,3784.2,0.6776]
[1760702448270,0.20665362,3785.7,3784.8,2.64208675]
[1760702448424,0.20665362,3785.7,3785.0,2.64200346]
[1760702448425,0.53290977,3785.7,3785.0,2.64200346]
[1760702448834,0.53290977,3785.7,3784.8,2.64214753]
[1760702449025,0.53290977,3785.7,3785.1,2.64193126]
[1760702449221,0.20585362,3785.7,3785.2,2.64186328]
[1760702449423,0.04605362,3785.7,3785.3,2.64179537]
[1760702449625,0.04605362,3785.7,3784.5,2.64235698]
[1760702449863,0.04605362,3785.7,3785.1,2.6418795]
[1760702450076,0.04605362,3785.7,3785.0,2.64198685]
[1760702450275,0.32611151,3785.6,3785.2,2.64182025]
[1760702450431,0.04605362,3785.7,3785.2,2.64182025]
[1760702450749,0.04605362,3785.7,3785.3,0.6776]
[1760702450957,0.04605362,3785.7,3785.5,2.64164979]
[1760702451260,0.04605362,3785.7,3785.3,0.6776]
[1760702451261,0.04605362,3785.7,3785.3,2.87448025]
[1760702451453,0.04605362,3785.7,3785.3,2.64178025]
[1760702451759,0.04605362,3785.7,3784.8,0.4449]
[1760702452073,0.1598,3785.6,3784.3,0.4398]
[1760702452242,2.64172255,3785.5,3784.6,2.64223414]
[1760702452447,2.64172255,3785.5,3784.4,2.6424268]
[1760702452448,0.73153049,3785.4,3784.4,2.6424268]
[1760702452651,0.73153049,3785.4,3784.6,2.64224203]
[1760702452652,2.45953049,3785.4,3784.6,2.64224203]
[1760702452945,0.04605565,3785.3,3784.7,2.64220909]
[1760702453535,0.4144638,3785.6,3785.2,0.2138]
[1760702453936,0.4144638,3785.6,3785.2,2.85564463]
[1760702454163,0.4144638,3785.6,3785.3,3.08159384]
[1760702454491,0.4144638,3785.6,3785.4,2.64172088]
[1760702454705,0.1606,3786.3,3785.4,0.4398]
[1760702454909,0.1606,3786.3,3785.6,2.64158918]
[1760702455204,1.728,3786.4,3785.3,2.6417523]
[1760702455506,0.79043451,3786.3,3785.5,2.64165785]
[1760702456083,0.79043451,3786.3,3785.4,2.64166012]
[1760702456284,0.79043451,3786.3,3785.5,2.64161132]
[1760702456483,0.79043451,3786.3,3785.6,2.64158081]
[1760702456682,0.0460471,3786.2,3785.2,0.6536]
[1760702456889,0.0460471,3786.2,3786.1,0.2138]
[1760702457293,0.0460471,3786.2,3786.1,0.6536]
[1760702457493,0.0460471,3786.2,3786.1,3.29484032]
[1760702457909,0.41434197,3787.2,3786.1,0.6536]
[1760702458110,0.04603876,3786.9,3786.2,0.2138]
[1760702458281,0.27493683,3786.9,3786.4,2.64102971]
[1760702458467,0.22889807,3786.9,3786.4,2.64102971]
[1760702458762,1.728,3787.0,3786.2,2.85494468]
[1760702458965,2.64063437,3787.0,3786.2,2.64114468]
[1760702459165,0.1006,3787.1,3786.3,2.64104991]
[1760702459395,3.05483749,3787.2,3786.3,2.64104991]
[1760702459595,0.6336,3787.1,3785.9,0.4398]
[1760702459893,0.6356,3786.9,3786.1,2.6412146]
[1760702460195,2.64076562,3786.8,3786.0,2.6412994]
[1760702460371,3.34923515,3786.9,3786.0,2.64128029]
[1760702460577,2.64084064,3786.7,3785.6,3.08135997]
[1760702460878,0.41432182,3786.7,3786.0,2.64125279]
[1760702461088,0.41432182,3786.7,3785.9,2.64135461]
[1760702461396,0.41432182,3786.7,3785.9,2.64136056]
[1760702461597,2.64100956,3786.5,3785.4,0.001]
[1760702461783,0.83068996,3786.7,3785.5,0.4574]
[1760702462096,0.41432182,3786.7,3786.0,2.64126585]
[1760702462413,0.41432182,3786.7,3786.1,0.7083124]
[1760702462711,0.41432182,3786.7,3786.4,2.64101528]
[1760702463015,0.04604166,3786.8,3786.4,3.09841528]
[1760702463170,0.04604166,3786.8,3786.4,0.4574]
[1760702463371,0.04604166,3786.8,3786.6,2.64084082]
[1760702463704,0.002,3786.9,3786.7,3.09816596]
[1760702463995,0.002,3786.9,3786.8,2.64075208]
[1760702464194,0.002,3786.9,3786.1,0.2245]
[1760702464496,0.002,3786.9,3786.8,2.64075208]
[1760702465284,0.002,3786.9,3786.8,3.09815208]
[1760702465485,0.41624172,3787.3,3786.8,4.95815208]
[1760702465695,0.002,3789.1,3787.5,2.64026402]
[1760702466001,0.002,3789.1,3788.2,2.63977614]
[1760702466186,0.002,3789.1,3788.2,2.6661739]
[1760702466390,0.002,3789.1,3788.2,3.22837614]
[1760702466587,0.002,3789.1,3788.1,2.86428986]
[1760702466914,0.002,3789.1,3787.8,0.4574]
[1760702466915,0.002,3789.1,3788.2,2.63977614]
[1760702467089,0.002,3789.1,3788.1,2.63984025]
[1760702467286,0.002,3789.1,3787.9,3.32185869]
[1760702467504,0.002,3789.1,3787.7,2.64012461]
[1760702467505,0.1659,3788.4,3787.7,2.64012461]
[1760702467702,0.1659,3788.4,3787.6,2.86468886]
[1760702467923,0.1652,3788.6,3787.6,2.86463077]
[1760702468214,0.1652,3788.6,3787.6,0.2245]
[1760702468725,0.1652,3788.6,3787.6,3.32209097]
[1760702469025,0.1652,3788.6,3787.7,2.64012461]
[1760702469026,0.41411003,3788.5,3787.7,2.64012461]
[1760702469173,0.41411003,3788.5,3787.6,0.2245]
[1760702469378,0.41411003,3788.5,3787.5,0.6819]
[1760702469619,0.41411003,3788.5,3787.6,0.02640194]
[1760702469820,0.04601947,3788.8,3788.2,2.63977614]
[1760702470026,0.04601947,3788.8,3788.2,3.09717614]
[1760702470526,0.002,3789.1,3788.2,3.69727242]
[1760702471126,0.002,3789.1,3788.2,3.67087466]
[1760702471328,0.002,3789.1,3788.2,3.09717614]
[1760702471530,0.1633,3788.9,3787.8,0.4574]
[1760702471706,0.1633,3788.9,3788.2,2.63977614]
[1760702472035,2.63943029,3788.7,3787.5,0.2245]
[1760702472192,2.63958347,3788.5,3787.5,0.2245]
[1760702472389,0.26615835,3788.3,3787.5,0.2245]
[1760702472625,0.26615835,3788.3,3787.3,0.4574]
[1760702472626,2.63996273,3788.0,3786.7,0.4574]
[1760702472823,0.6356,3788.3,3786.1,0.2245]
[1760702472824,23.450782,3787.8,3786.1,0.2245]
[1760702472988,0.3135,3787.9,3786.1,0.2245]
[1760702472989,0.6336,3787.4,3786.1,0.2245]
[1760702473191,0.6336,3787.4,3785.0,0.001]
[1760702473192,0.1594,3786.2,3785.0,0.001]
[1760702473414,1.728,3785.8,3785.0,0.001]
[1760702473618,0.3456,3785.8,3785.0,0.001]
[1760702473897,2.74042287,3785.7,3785.0,0.001]
[1760702474118,9.68663196,3785.5,3785.0,0.001]
[1760702474327,9.75211096,3785.5,3785.0,0.001]
[1760702474526,9.85101096,3785.5,3785.0,0.001]
[1760702474825,8.92989512,3785.1,3785.0,0.001]
[1760702475013,7.45203812,3785.1,3785.0,0.001]
[1760702475215,2.3616,3785.1,3785.0,0.001]
[1760702475430,1.728,3785.1,3785.0,0.001]
[1760702475641,11.06662012,3785.1,3785.0,0.001]
[1760702475927,12.43746276,3785.1,3785.0,0.001]
[1760702476930,36.47228076,3785.1,3785.0,0.001]
[1760702477312,35.00381734,3784.7,3784.6,0.001]
[1760702477537,48.72799305,3784.7,3784.6,0.001]
[1760702477741,48.82699305,3784.7,3784.6,0.001]
[1760702478031,51.2551744,3784.7,3784.6,0.001]
[1760702479519,2.64326567,3783.2,3782.6,0.001]
[1760702479724,2.64346447,3783.0,3782.6,0.001]
[1760702479948,0.6336,3783.5,3782.6,0.001]
[1760702479949,2.8088396,3783.1,3782.6,0.001]
[1760702480139,0.1655,3783.1,3782.6,0.001]
[1760702480465,2.80884531,3783.1,3782.6,0.001]
[1760702480608,0.1655,3783.1,3782.6,0.001]
[1760702480809,0.6336,3783.2,3782.6,0.001]
[1760702481253,1.728,3783.1,3782.6,0.001]
[1760702481536,1.728,3783.0,3782.6,0.001]
[1760702481724,0.32768075,3783.1,3782.6,0.001]
[1760702482047,26.86375441,3782.7,3782.6,0.001]
[1760702482208,24.54072341,3782.7,3782.6,0.001]
[1760702482406,24.54072341,3782.7,3782.2,1e-08]
[1760702482407,2.64375413,3782.5,3782.2,1e-08]
[1760702482714,2.64375413,3782.5,3776.5,0.05]
[1760702482715,0.6336,3781.4,3779.5,0.2257]
[1760702483056,11.89543,3780.6,3779.5,0.2257]
[1760702483255,3.370784,3780.2,3779.2,0.2257]
[1760702483560,1.728,3779.9,3779.2,0.2257]
[1760702483837,1.728,3780.2,3779.2,0.2257]
[1760702484140,2.64566511,3779.8,3779.2,0.2257]
[1760702484339,1.8922,3779.9,3779.2,0.2257]
[1760702484506,1.62598241,3780.1,3779.2,0.2257]
[1760702484723,1.728,3780.0,3779.2,0.2257]
[1760702484944,1.728,3780.1,3779.2,0.2257]
[1760702485149,1.728,3780.5,3779.4,2.64592263]
[1760702485448,0.1642,3781.0,3780.0,2.64549154]
[1760702485653,0.1642,3781.0,3779.2,2.87174866]
[1760702485654,1.46984264,3782.4,3780.9,2.64484241]
[1760702485840,2.64361434,3782.7,3781.0,0.4721]
[1760702486031,1.728,3781.9,3781.1,0.2257]
[1760702486215,2.64390906,3782.3,3781.1,0.2257]
[1760702486539,2.64391683,3782.3,3781.1,0.2257]
[1760702486740,5.620161,3782.3,3781.1,2.8704122]
[1760702487058,0.1872,3783.2,3782.2,0.2257]
[1760702487224,2.440738,3783.0,3782.2,0.2257]
[1760702487430,4.74979,3783.1,3782.2,0.2257]
[1760702487621,0.75802701,3783.0,3782.2,0.2257]
[1760702487816,9.393649,3783.1,3782.2,0.2257]
[1760702488019,0.1872,3783.2,3782.2,0.2257]
[1760702488217,2.64353844,3782.9,3782.2,0.2257]
[1760702488455,2.64353844,3782.9,3780.1,2.87107104]
[1760702488456,1.728,3782.6,3781.6,0.2257]
[1760702488646,2.64375444,3782.5,3781.6,0.2257]
[1760702488843,2.64368961,3782.6,3781.6,2.87007754]
[1760702489027,5.053499,3782.2,3781.1,0.2257]
[1760702489227,17.080493,3782.3,3781.2,0.02644663]
[1760702489438,1.728,3783.0,3782.1,0.2257]
[1760702489639,1.2738099,3782.9,3782.1,0.2257]
[1760702489840,2.64354606,3782.8,3782.1,0.2257]
[1760702490040,0.6336,3783.0,3782.1,0.2257]
[1760702490253,1.728,3782.7,3782.1,0.2257]
[1760702490850,2.64359977,3782.8,3782.1,0.2257]
[1760702491022,2.64349916,3782.9,3782.1,0.2257]
[1760702491224,0.28306992,3782.9,3782.1,0.2257]
[1760702491438,1.728,3783.0,3782.1,0.2257]
[1760702491749,1.728,3783.0,3781.1,0.2257]
[1760702491750,1.728,3782.2,3781.6,0.2257]
[1760702492162,1.728,3782.6,3781.6,0.2257]
[1760702492363,1.728,3782.4,3781.6,0.2257]
[1760702492568,2.64401993,3782.2,3781.6,0.2257]
[1760702492866,3.17280462,3782.2,3781.3,2.87029117]
[1760702493079,6.89769667,3782.6,3781.5,2.64442794]
[1760702493247,1.728,3782.3,3781.3,0.2257]
[1760702493567,1.728,3782.2,3781.3,0.2257]
[1760702493770,2.64361357,3782.8,3781.5,2.64444909]
[1760702493967,3.812,3782.6,3781.3,0.2257]
[1760702494144,3.511835,3782.6,3781.4,0.82892152]
[1760702494347,0.24612,3782.8,3781.5,0.4721]
[1760702494535,0.1872,3783.2,3781.5,0.49854453]
[1760702494536,1.728,3783.1,3781.5,0.49854453]
[1760702494735,11.012106,3783.6,3781.5,0.4721]
[1760702494937,8.764737,3783.3,3781.7,2.6443134]
[1760702495185,8.764125,3783.1,3782.3,2.64384842]
[1760702495334,5.529822,3783.6,3782.5,2.64368511]
[1760702495539,1.728,3783.3,3782.3,0.4721]
[1760702495842,0.5706595,3783.5,3782.7,2.64359758]
[1760702496033,0.1675,3784.0,3782.8,0.4721]
[1760702496239,0.1675,3784.0,3783.0,2.64340194]
[1760702496438,0.0997,3785.1,3783.9,2.64277286]
[1760702496688,0.1873,3785.0,3783.6,0.4721]
[1760702496834,0.7950063,3786.7,3783.1,0.2257]
[1760702496835,4.746664,3785.2,3783.9,0.4721]
[1760702497039,0.41454939,3784.9,3783.9,0.78359031]
[1760702497239,0.41454939,3784.9,3784.8,2.86784753]
[1760702497469,0.41454939,3784.9,3784.8,3.33994753]
[1760702497774,2.244,3786.4,3784.9,2.64207772]
[1760702497971,0.41445243,3786.2,3785.6,2.64154198]
[1760702498267,0.41445243,3786.2,3785.7,2.64146962]
[1760702498485,0.1005,3786.1,3784.8,0.2257]
[1760702498649,0.1005,3786.1,3784.0,0.2257]
[1760702498650,0.41445243,3786.2,3784.7,0.2257]
[1760702498837,1.728,3785.8,3784.9,0.4721]
[1760702499044,3.1173926,3785.8,3784.9,0.4721]
[1760702499265,1.3893926,3785.8,3784.9,0.4721]
[1760702499477,1.3893926,3785.8,3784.7,0.2257]
[1760702499478,1.728,3785.4,3784.7,0.2257]
[1760702499637,1.728,3785.5,3784.7,0.2257]
[1760702499840,2.64157721,3785.7,3784.7,0.2257]
[1760702500051,1.77405227,3785.8,3784.7,0.2257]
[1760702500052,2.64161644,3785.6,3784.7,0.2257]
[1760702500236,0.48301857,3785.5,3784.7,2.86791511]
[1760702500467,0.89747791,3785.5,3784.7,2.86791511]
[1760702500781,0.89747791,3785.5,3784.7,2.86791555]
[1760702500984,0.46051627,3785.5,3784.7,0.2257]
[1760702501137,0.46051627,3785.5,3785.4,0.2257]
[1760702501337,0.04605693,3785.5,3785.4,0.2257]
[1760702502060,0.04605693,3785.5,3784.9,2.64201531]
[1760702502061,0.04605693,3785.5,3785.1,0.2257]
[1760702502370,0.04605693,3785.5,3784.7,0.2257]
[1760702502371,0.04605693,3785.5,3784.7,2.86790294]
[1760702502574,0.04605693,3785.5,3784.7,0.2257]
[1760702502744,0.04605693,3785.5,3784.6,0.2257]
[1760702502945,2.64178337,3785.4,3784.6,0.2257]
[1760702503139,0.04605693,3785.5,3784.0,0.2257]
[1760702503140,1.728,3785.1,3784.0,0.2257]
[1760702503339,1.728,3784.9,3783.7,0.2257]
[1760702503563,4.37023004,3784.7,3783.7,0.2257]
[1760702503878,1.728,3784.5,3783.3,0.4721]
[1760702504055,2.64258132,3784.2,3783.3,0.4721]
[1760702504253,0.26425813,3784.1,3783.3,0.4721]
[1760702504652,2.64251245,3784.3,3783.3,3.11527321]
[1760702504976,2.64251245,3784.3,3783.4,2.64310521]
[1760702505179,2.64244015,3784.4,3783.3,0.4721]
[1760702505479,2.142592,3784.5,3783.3,0.4721]
[1760702505480,4.37058322,3784.2,3783.3,3.11529334]
[1760702505786,0.1872,3783.4,3782.1,2.64403373]
[1760702505954,0.1872,3783.4,3782.5,2.64368681]
[1760702506275,0.1872,3783.4,3782.1,0.59859731]
[1760702506276,0.1872,3783.4,3782.7,2.64356671]
[1760702506677,0.1872,3783.4,3782.8,2.6435267]
[1760702506851,0.1872,3783.4,3782.1,0.59859731]
[1760702506852,0.41467884,3783.6,3782.7,0.4721]
[1760702507269,0.0460753,3784.0,3783.5,2.86875537]
[1760702507460,0.0460753,3784.0,3783.5,3.34085537]
[1760702507657,0.0460753,3784.0,3783.5,0.6978]
[1760702507875,0.0460753,3784.0,3783.5,0.2257]
[1760702508083,0.52919598,3784.0,3783.5,2.64300478]
[1760702508381,0.0460753,3784.0,3783.2,0.2257]
[1760702508568,0.0460753,3784.0,3783.3,2.64313188]
[1760702509174,1.7740753,3784.0,3783.2,2.86895145]
[1760702509346,0.177,3783.9,3782.4,0.4721]
[1760702509547,0.177,3783.9,3782.5,2.64375413]
[1760702509782,0.177,3783.9,3783.1,2.64333391]
[1760702509980,0.177,3783.9,3782.6,0.32478541]
[1760702509981,0.4146293,3783.6,3782.6,0.32478541]
[1760702510287,0.4146293,3783.6,3782.4,3.115864]
[1760702510469,0.4146293,3783.6,3782.6,2.64368423]
[1760702510673,0.4146293,3783.6,3782.5,0.4721]
[1760702510674,0.46070562,3783.6,3782.5,0.4721]
[1760702511092,0.46070562,3783.6,3783.1,2.64327093]
[1760702511277,0.46070562,3783.6,3782.5,0.4721]
[1760702511583,0.46070562,3783.6,3783.0,2.64333969]
[1760702511768,0.46070562,3783.6,3783.1,2.64333169]
[1760702512373,0.46070562,3783.6,3782.9,2.64346295]
[1760702512590,0.46070562,3783.6,3783.2,2.64326496]
[1760702512764,0.04607632,3783.6,3783.5,2.64305537]
[1760702512966,0.04607632,3783.6,3783.5,3.07695537]
[1760702513204,0.04607632,3783.6,3783.5,0.4339]
[1760702513352,0.04607632,3783.6,3783.1,0.2328]
[1760702513552,0.04607632,3783.6,3783.5,2.64305537]
[1760702513776,0.04607632,3783.6,3783.5,3.64897042]
[1760702513988,0.41462482,3784.7,3783.7,2.64287013]
[1760702514151,0.41462482,3784.7,3783.5,3.64897042]
[1760702514152,2.68841369,3784.6,3783.8,2.6428363]
[1760702514485,2.64240207,3784.5,3783.7,2.64290304]
[1760702514695,0.0998,3784.6,3783.1,0.2328]
[1760702514895,1.728,3784.2,3783.1,0.2328]
[1760702515074,0.0998,3784.6,3783.1,0.56382176]
[1760702515278,1.728,3783.9,3783.2,2.64324138]
[1760702515479,1.9035,3783.9,3783.1,2.87612441]
[1760702515676,1.9035,3783.9,3783.2,2.64325957]
[1760702516202,0.1755,3783.9,3783.3,2.6431838]
[1760702516407,0.1755,3783.9,3783.1,0.2328]
[1760702516567,0.41463156,3784.3,3783.4,2.64306374]
[1760702516902,0.41463156,3784.3,3784.2,0.2328]
[1760702517106,2.64186984,3785.2,3784.4,2.64241362]
[1760702517303,1.728,3785.2,3784.4,2.64241362]
[1760702517503,0.04606391,3785.3,3784.7,2.64216648]
[1760702517694,0.04606391,3785.3,3784.8,2.64214548]
[1760702517891,0.04606391,3785.3,3784.2,0.2328]
[1760702518097,1.728,3785.2,3784.4,2.64237186]
[1760702518280,0.04606391,3785.3,3784.5,2.64231203]
[1760702518602,0.002,3785.4,3784.5,2.64231203]
[1760702518774,0.04605981,3784.9,3784.5,2.64235622]
[1760702518968,0.04605981,3784.9,3784.6,2.6422818]
[1760702519201,0.04605981,3784.9,3784.6,2.64225015]
[1760702519377,0.04605981,3784.9,3784.2,0.2328]
[1760702519582,0.04605981,3784.9,3784.3,2.64249663]
[1760702519583,0.22155981,3784.9,3784.3,2.64249663]
[1760702519985,0.22155981,3784.9,3784.2,2.87535592]
[1760702520202,1.94955981,3784.9,3784.2,0.2328]
[1760702520409,1.94955981,3784.9,3783.9,2.64272217]
[1760702520410,1.7272,3784.7,3783.9,2.64277244]
[1760702520604,0.45936251,3784.8,3784.0,2.64270016]
[1760702520807,2.64226466,3784.7,3783.8,2.87560291]
[1760702521016,6.178732,3784.7,3783.8,0.2328]
[1760702521199,4.030498,3784.5,3783.2,0.4339]
[1760702521507,4.030498,3784.5,3783.5,2.6430114]
[1760702521508,3.971013,3784.3,3783.5,2.6430114]
[1760702521695,0.45936251,3784.8,3783.6,0.02642985]
[1760702521880,0.04607239,3784.2,3783.3,0.214]
[1760702522087,0.1028,3784.3,3783.1,0.214]
[1760702522306,2.64275612,3784.0,3783.1,0.214]
[1760702522507,1.902,3783.9,3783.1,0.214]
[1760702522706,2.81679492,3783.9,3783.1,0.214]
[1760702522907,1.728,3783.7,3782.5,0.4722]
[1760702523081,2.92916962,3783.8,3783.0,2.64335729]
[1760702523289,2.92916962,3783.8,3783.0,2.64340054]
[1760702523482,0.28628664,3783.8,3783.0,2.64340054]
[1760702523688,1.728,3783.7,3783.0,2.64340054]
[1760702523888,2.64293236,3783.7,3782.9,2.64347395]
[1760702524285,2.64293236,3783.7,3782.5,0.4722]
[1760702524286,1.728,3783.7,3783.0,0.49763404]
[1760702524485,1.728,3783.8,3783.1,0.214]
[1760702524685,1.728,3784.7,3783.1,0.214]
[1760702524888,8.397052,3784.2,3783.1,0.214]
[1760702525092,0.099,3784.6,3783.2,0.4712]
[1760702525418,5.794494,3784.0,3782.9,2.64341964]
[1760702525626,0.1755,3784.9,3782.7,3.11476691]
[1760702525627,0.2775,3783.9,3782.7,0.4712]
[1760702525941,1.728,3783.7,3782.5,0.001]
[1760702526080,1.728,3783.3,3782.5,0.001]
[1760702526278,21.83167723,3782.6,3782.5,0.001]
[1760702526513,8.445194,3782.6,3782.5,0.001]
[1760702526699,4.54528423,3782.6,3782.5,0.001]
[1760702526890,7.18310323,3782.6,3782.5,0.001]
[1760702527092,4.54528423,3782.6,3782.5,0.001]
[1760702527302,1.728,3782.6,3782.5,0.001]
[1760702527507,1.728,3782.6,3782.5,3.11595413]
[1760702528583,1.728,3782.6,3782.5,0.4722]
[1760702528816,1.728,3783.2,3782.5,0.4722]
[1760702529000,2.56961856,3783.2,3782.5,0.001]
[1760702529381,1.728,3783.2,3782.6,2.64367978]
[1760702529587,1.728,3783.2,3782.5,2.64473223]
[1760702529823,1.728,3783.2,3782.6,2.64367558]
[1760702530246,0.132,3782.6,3782.5,0.001]
[1760702530444,6.51608562,3783.3,3782.5,0.001]
[1760702530445,0.04608562,3783.3,3782.5,0.001]
[1760702530648,0.04608562,3783.3,3783.1,2.85727636]
[1760702530850,0.17808562,3783.3,3783.2,2.64326496]
[1760702531049,0.04608562,3783.3,3783.2,3.1408976]
[1760702531223,0.002,3785.0,3784.2,2.6425657]
[1760702531560,0.002,3785.0,3783.2,0.4712]
[1760702531561,0.132,3784.2,3784.1,2.64263629]
[1760702531862,0.132,3784.2,3783.5,0.4712]
[1760702532147,0.132,3784.2,3782.9,2.64342843]
[1760702532148,2.64291683,3783.7,3782.9,0.4712]
[1760702532324,0.73499168,3783.7,3783.0,2.64337346]
[1760702532530,2.172517,3784.0,3783.0,2.64337346]
[1760702532714,0.132,3783.0,3782.6,2.64362814]
[1760702532918,0.132,3782.7,3782.5,2.64470407]
[1760702533744,0.132,3782.7,3782.6,2.64368423]
[1760702535167,0.132,3782.7,3782.5,0.001]
[1760702535467,0.132,3782.7,3782.6,2.64368423]
[1760702536379,0.0460818,3783.3,3782.6,1.04716914]
[1760702536663,0.1782,3783.9,3782.7,0.4712]
[1760702536870,1.728,3783.7,3782.7,0.4712]
[1760702537162,6.001564,3783.6,3782.8,2.64349219]
[1760702537371,5.637564,3783.6,3782.5,0.001]
[1760702537532,0.1005,3783.5,3782.5,0.001]
[1760702537737,1.728,3783.2,3782.5,0.001]
[1760702537937,0.1782,3783.9,3782.5,0.4722]
[1760702538173,0.1782,3783.9,3783.1,2.6433233]
[1760702538174,0.19062,3783.8,3783.1,2.6433233]
[1760702538475,0.19062,3783.8,3783.1,0.214]
[1760702538773,4.47106977,3784.2,3783.3,2.64313873]
[1760702539071,0.002,3784.7,3783.4,0.02643125]
[1760702539250,0.002,3784.7,3784.0,2.64265637]
[1760702539436,0.002,3784.7,3783.4,0.4712]
[1760702539437,0.002,3784.7,3783.9,2.64271329]
[1760702539636,2.68835471,3784.6,3783.7,2.64288626]
[1760702539838,4.37036955,3784.5,3783.4,0.4712]
[1760702540078,1.728,3784.5,3783.6,2.6429531]
[1760702540268,1.728,3784.5,3783.4,0.4712]
[1760702540576,1.728,3784.5,3783.8,2.64284146]
[1760702540744,2.67992,3784.5,3783.8,2.64284146]
[1760702540945,2.67992,3784.5,3783.4,0.4712]
[1760702540946,0.04606617,3784.6,3784.0,2.64264894]
[1760702541256,0.04606617,3784.6,3784.1,2.64262769]
[1760702541458,0.04606617,3784.6,3783.9,2.64277597]
[1760702541779,0.04606617,3784.6,3783.4,0.4712]
[1760702541961,1.728,3784.5,3783.8,2.64283638]
[1760702542374,0.04606617,3784.6,3783.8,2.64283638]
[1760702542582,0.04606617,3784.6,3783.4,0.8040496]
[1760702542756,1.728,3784.5,3783.8,2.64278413]
[1760702543165,1.728,3784.5,3783.6,2.64292238]
[1760702543373,2.55916877,3784.5,3783.7,2.6429075]
[1760702543686,2.64237853,3784.5,3783.7,2.6429075]
[1760702544379,2.64247674,3784.4,3783.3,2.64319019]
[1760702544587,4.94744479,3784.3,3783.1,0.214]